bitfinex/quotes_ETHUSD_20240608
["timestamp","ask_amount","ask_price","bid_price","bid_amount"]
[1717811900496,0.43365042,3692.5,3692.4,2.70826]
[1717811900856,0.58549396,3692.5,3692.4,2.70826]
[1717811901066,0.43365042,3692.5,3692.4,2.70826]
[1717811901466,0.58549396,3692.5,3692.4,2.70826]
[1717811901680,0.43365042,3692.5,3692.4,2.70826]
[1717811901897,0.58549396,3692.6,3692.4,2.70826]
[1717811902202,1.01914438,3692.5,3692.4,2.70826]
[1717811902368,0.43365042,3692.5,3692.4,2.70826]
[1717811902880,1.01914438,3692.5,3692.4,2.70826]
[1717811903091,0.43365042,3692.5,3692.4,2.70826]
[1717811903473,0.58549396,3692.5,3692.4,2.70826]
[1717811903678,0.43365042,3692.5,3692.4,2.70826]
[1717811904087,0.58549396,3692.5,3692.4,2.70826]
[1717811904296,0.43364698,3692.5,3692.4,2.70826]
[1717811904770,0.58549396,3692.5,3692.4,2.70826]
[1717811904974,0.43364698,3692.5,3692.4,2.70826]
[1717811905374,0.58549396,3692.5,3692.4,2.70826]
[1717811905604,0.43364698,3692.5,3692.4,2.70826]
[1717811905908,1.01914094,3692.5,3692.4,2.70826]
[1717811906114,0.58549396,3692.5,3692.4,2.70826]
[1717811906315,1.01914094,3692.5,3692.4,2.70826]
[1717811906624,0.43364698,3692.5,3692.4,2.70826]
[1717811906925,0.58549396,3692.6,3692.4,2.70826]
[1717811907131,1.01912378,3692.5,3692.4,2.70826]
[1717811907356,0.43362982,3692.5,3692.4,2.70826]
[1717811907786,2.05995643,3692.5,3692.4,2.70826]
[1717811912724,0.43362982,3692.5,3692.4,2.70826]
[1717811912923,2.05995643,3692.5,3692.4,2.70826]
[1717811913930,2.05995979,3692.5,3692.4,2.70826]
[1717811925213,0.43362982,3692.5,3692.4,2.70826]
[1717811925414,2.05995979,3692.5,3692.4,2.70826]
[1717811926249,0.43362982,3692.5,3692.4,2.70826]
[1717811926538,2.05995979,3692.5,3692.4,2.70826]
[1717811927239,0.43362982,3692.5,3692.4,2.70826]
[1717811929405,0.43362982,3692.5,3692.4,3.42926]
[1717811929708,2.05995979,3692.5,3692.4,3.282916]
[1717811930001,0.43362982,3692.5,3692.4,3.282916]
[1717811930202,2.05995979,3692.5,3692.4,2.70826]
[1717811932043,0.43362982,3692.5,3692.4,2.70826]
[1717811933240,0.58547878,3693.0,3692.4,2.70826]
[1717811933442,0.41934082,3692.9,3692.4,2.70826]
[1717811933856,2.3488,3693.1,3692.4,2.70826]
[1717811934056,0.72632082,3693.0,3692.4,2.70826]
[1717811934428,1.62630126,3692.6,3692.4,2.70826]
[1717811934732,1.81183513,3692.6,3692.4,2.70826]
[1717811934927,0.41934082,3692.5,3692.4,2.70826]
[1717811936764,0.18553387,3692.6,3692.4,2.70826]
[1717811946575,1.81182015,3692.6,3692.4,2.70826]
[1717811946958,0.41936512,3692.5,3692.4,2.70826]
[1717811948070,1.81177109,3692.6,3692.4,2.70826]
[1717811948263,0.41936512,3692.5,3692.4,2.70826]
[1717811949447,0.18553387,3692.6,3692.4,2.70826]
[1717811990895,0.58542655,3693.0,3692.7,2.708]
[1717811991091,0.8788492,3692.9,3692.7,2.708]
[1717811991295,0.71276,3692.9,3692.7,2.708]
[1717811991531,1.0047639,3692.9,3692.7,2.708]
[1717811991730,0.41933735,3692.9,3692.7,2.708]
[1717811991934,1.0047639,3692.9,3692.7,2.708]
[1717811992122,0.41933735,3692.9,3692.7,2.708]
[1717811992323,1.0047639,3692.9,3692.7,2.708]
[1717811992526,0.41933735,3692.9,3692.7,2.708]
[1717811999252,0.33535614,3692.8,3692.7,2.708]
[1717811999457,0.41936512,3692.8,3692.7,2.708]
[1717811999658,0.58542406,3693.0,3692.7,2.708]
[1717811999828,0.41936512,3692.8,3692.7,2.708]
[1717812000034,0.58542406,3693.0,3692.7,2.708]
[1717812000233,0.41936512,3692.8,3692.7,2.708]
[1717812003462,2.86126512,3692.8,3692.7,2.708]
[1717812003668,2.86126512,3692.8,3691.7,1.13132105]
[1717812003669,2.4419,3692.7,3691.9,2.7086]
[1717812003823,2.4419,3692.5,3691.9,2.7086]
[1717812004030,2.4419,3692.3,3691.9,2.7086]
[1717812004226,1.01525647,3692.2,3691.9,2.7086]
[1717812004549,0.58542406,3692.1,3691.9,2.7086]
[1717812004929,0.58542406,3692.0,3691.9,2.7086]
[1717812005267,1.01525647,3692.2,3691.9,2.7086]
[1717812005466,0.41427324,3692.1,3691.9,2.7086]
[1717812007686,0.41427324,3692.1,3691.5,2.70892]
[1717812008056,1.62668476,3691.9,3691.5,2.70892]
[1717812008363,1.62668476,3692.0,3691.5,2.70892]
[1717812011564,2.337,3691.9,3691.5,2.70892]
[1717812011745,3.96368476,3691.9,3691.5,2.70892]
[1717812011951,1.62668476,3691.7,3691.5,2.70892]
[1717812012869,2.09515324,3691.8,3691.5,2.70892]
[1717812013046,1.62668476,3691.8,3691.1,5.08491]
[1717812013556,2.337,3691.6,3691.1,2.70921]
[1717812013876,2.337,3691.6,3690.6,5.69863]
[1717812014091,1.62668476,3691.4,3690.6,4.97763]
[1717812014281,2.1019254,3691.5,3690.6,4.97763]
[1717812014484,1.62668476,3691.4,3690.8,0.721]
[1717812014862,3.96368476,3691.6,3690.8,0.721]
[1717812015201,2.73336848,3691.6,3690.8,0.721]
[1717812015391,4.36005324,3691.6,3690.8,0.721]
[1717812015752,0.39636848,3691.6,3691.0,0.721]
[1717812015954,3.96368476,3691.8,3691.0,0.721]
[1717812016170,2.337,3691.8,3691.0,0.721]
[1717812016373,0.3058,3691.7,3690.9,0.721]
[1717812017478,0.41874736,3691.6,3690.9,0.721]
[1717812017688,0.36874736,3691.6,3691.0,2.70927]
[1717812019818,3.96368476,3691.8,3691.0,2.70927]
[1717812020129,0.41691406,3691.5,3691.0,2.70927]
[1717812020275,4.49069564,3691.8,3691.0,2.70927]
[1717812020996,0.41691406,3691.7,3691.0,2.70927]
[1717812022680,0.41691406,3691.7,3691.2,2.70908]
[1717812023286,1.62668476,3692.0,3691.2,2.70908]
[1717812023509,0.41691406,3691.9,3691.2,2.70908]
[1717812025924,2.04359882,3691.9,3691.2,2.70908]
[1717812026502,1.62668476,3691.8,3691.2,2.70908]
[1717812026894,0.41691406,3691.7,3691.2,2.70908]
[1717812028992,0.41691406,3691.7,3691.6,4.97175]
[1717812029329,0.16571925,3692.0,3691.6,4.97175]
[1717812029532,0.4170946,3691.9,3691.6,4.97175]
[1717812030114,0.4170946,3691.9,3691.6,5.69275]
[1717812030438,0.4170946,3691.9,3691.8,0.721]
[1717812030732,0.4170946,3691.9,3691.8,3.783775]
[1717812037658,0.4170946,3691.9,3691.8,3.062775]
[1717812037847,0.4170946,3691.9,3691.6,2.70885]
[1717812038048,0.4170946,3691.9,3691.6,3.42985]
[1717812038660,0.4170946,3691.9,3691.6,2.70885]
[1717812050154,2.04374623,3691.9,3691.6,2.70885]
[1717812051365,0.4170946,3691.9,3691.6,2.70885]
[1717812052890,0.4170946,3691.9,3691.7,0.721]
[1717812053363,2.04374623,3691.9,3691.7,0.721]
[1717812057304,1.62665163,3691.8,3691.7,0.721]
[1717812057681,2.04400306,3691.8,3691.7,0.721]
[1717812057880,0.41735143,3691.8,3691.7,0.721]
[1717812058077,0.41735143,3691.8,3691.7,3.0984]
[1717812058283,0.41735143,3691.8,3691.7,3.679125]
[1717812058479,0.58559459,3692.3,3691.7,3.679125]
[1717812058480,1.62665163,3692.1,3691.7,3.679125]
[1717812058679,1.62665163,3692.1,3691.8,2.70869]
[1717812059011,0.41725773,3692.0,3691.8,2.70869]
[1717812059517,2.04390936,3692.0,3691.8,2.70869]
[1717812060016,0.41725773,3692.0,3691.8,2.70869]
[1717812061391,1.62665163,3692.1,3691.8,2.70869]
[1717812061582,0.41734796,3691.9,3691.8,2.70869]
[1717812061924,1.62665163,3692.2,3691.8,2.70869]
[1717812062091,0.41734796,3691.9,3691.8,2.70869]
[1717812062296,1.62665163,3692.2,3691.8,2.70869]
[1717812062920,2.04399959,3692.1,3691.8,2.70869]
[1717812063588,0.41734796,3692.1,3691.8,2.70869]
[1717812064224,0.41734796,3692.1,3692.0,2.70855]
[1717812065053,2.04399959,3692.1,3692.0,2.70855]
[1717812066352,0.41734796,3692.1,3692.0,2.70855]
[1717812068355,2.04399959,3692.1,3692.0,2.70855]
[1717812070368,0.41734796,3692.1,3692.0,2.70855]
[1717812071162,2.4857,3692.3,3692.0,2.70855]
[1717812071361,1.00305013,3692.2,3692.0,2.70855]
[1717812072572,0.41745554,3692.2,3692.0,2.70855]
[1717812072872,1.62656629,3692.1,3692.0,2.70855]
[1717812073378,2.04402183,3692.1,3692.0,2.70855]
[1717812074373,0.41745554,3692.1,3692.0,2.70855]
[1717812075876,2.04404214,3692.1,3692.0,2.70855]
[1717812076239,0.41745554,3692.1,3692.0,2.70855]
[1717812076634,0.58559459,3692.2,3692.0,2.70855]
[1717812076874,0.41740004,3692.1,3692.0,2.70855]
[1717812080343,2.0439621,3692.1,3692.0,2.70855]
[1717812084178,0.41740004,3692.1,3692.0,2.70855]
[1717812087112,1.00299463,3692.1,3692.0,2.70855]
[1717812087313,0.41740004,3692.1,3692.0,2.70855]
[1717812087502,1.00299463,3692.1,3692.0,2.70855]
[1717812087701,0.41740004,3692.1,3692.0,2.70855]
[1717812088014,1.00299463,3692.1,3692.0,2.70855]
[1717812088212,0.41740004,3692.1,3692.0,2.70855]
[1717812088415,1.00299463,3692.1,3692.0,2.70855]
[1717812088582,0.41740004,3692.1,3692.0,2.70855]
[1717812088915,1.00299463,3692.1,3692.0,2.70855]
[1717812089216,0.41740004,3692.1,3692.0,2.70855]
[1717812089519,1.00299463,3692.1,3692.0,2.70855]
[1717812089678,0.41740004,3692.1,3692.0,2.70855]
[1717812089877,1.00299463,3692.1,3692.0,2.70855]
[1717812090080,0.41740004,3692.1,3692.0,2.70855]
[1717812090316,1.00299463,3692.1,3692.0,2.70855]
[1717812090521,0.41740004,3692.1,3692.0,2.70855]
[1717812090723,1.00299463,3692.1,3692.0,2.70855]
[1717812091099,0.41740004,3692.1,3692.0,2.70855]
[1717812091399,1.00299463,3692.1,3692.0,2.70855]
[1717812091598,0.41740004,3692.1,3692.0,2.70855]
[1717812091828,1.00299463,3692.1,3692.0,2.70855]
[1717812091999,0.41740004,3692.1,3692.0,2.70855]
[1717812092199,1.00299463,3692.1,3692.0,2.70855]
[1717812092427,0.41740004,3692.1,3692.0,2.70855]
[1717812092723,1.00299463,3692.1,3692.0,2.70855]
[1717812092923,0.41740004,3692.1,3692.0,2.70855]
[1717812093123,1.00299463,3692.1,3692.0,2.70855]
[1717812093289,0.41740004,3692.1,3692.0,2.70855]
[1717812093623,1.00299463,3692.1,3692.0,2.70855]
[1717812093823,0.41740004,3692.1,3692.0,2.70855]
[1717812094192,1.00299463,3692.1,3692.0,2.70855]
[1717812094589,2.3095,3692.0,3691.6,2.70882]
[1717812094814,1.00300156,3691.9,3691.6,2.70882]
[1717812095019,0.58559459,3691.8,3691.6,2.70882]
[1717812095326,0.58559459,3691.7,3691.6,2.70882]
[1717812095516,0.58559459,3691.8,3691.6,2.70882]
[1717812095693,1.00300156,3691.7,3691.6,2.70882]
[1717812095893,0.58559459,3691.7,3691.6,2.70882]
[1717812096094,0.41740697,3691.7,3691.6,2.70882]
[1717812096294,1.00300156,3691.7,3691.6,2.70882]
[1717812096507,0.58559459,3691.7,3691.2,10.86013]
[1717812096687,1.62677493,3691.5,3691.2,3.43013]
[1717812097091,0.41731327,3691.4,3691.2,3.43013]
[1717812097590,0.41731327,3691.4,3691.2,2.70913]
[1717812097826,0.41731327,3691.4,3691.2,3.43013]
[1717812098532,1.62677493,3691.6,3691.2,3.43013]
[1717812098702,0.41731327,3691.3,3691.2,3.43013]
[1717812099323,1.62677493,3691.6,3691.2,3.43013]
[1717812099529,0.41731327,3691.3,3691.2,3.43013]
[1717812099717,1.62677493,3691.6,3691.2,3.43013]
[1717812100029,1.62677493,3691.6,3691.2,2.70913]
[1717812100233,1.62677493,3691.6,3691.2,3.43013]
[1717812100234,0.41731327,3691.5,3691.2,3.43013]
[1717812100420,0.41731327,3691.5,3691.2,2.70913]
[1717812102398,3.97177493,3691.7,3691.2,2.70913]
[1717812102601,0.83310513,3691.6,3691.2,2.70913]
[1717812104525,4.91098006,3691.6,3691.2,2.70913]
[1717812106021,4.91098006,3691.6,3691.2,3.43013]
[1717812110204,4.4951882,3691.6,3691.2,3.43013]
[1717812113403,4.4951882,3691.6,3691.2,2.70913]
[1717812113826,1.62677493,3691.5,3691.2,2.70913]
[1717812114517,0.41731327,3691.4,3691.2,2.70913]
[1717812119244,2.0440882,3691.4,3691.2,2.70913]
[1717812121139,0.41731327,3691.4,3691.2,2.70913]
[1717812121453,2.4511,3691.6,3691.2,2.70913]
[1717812121777,0.4171432,3691.3,3691.2,2.70913]
[1717812121916,2.4511,3691.6,3691.2,2.70913]
[1717812122117,0.4171432,3691.3,3691.2,2.70913]
[1717812122320,2.4511,3691.6,3691.2,2.70913]
[1717812122541,0.4171432,3691.3,3691.2,2.70913]
[1717812122751,2.4511,3691.6,3691.2,2.70913]
[1717812122926,0.4171432,3691.3,3691.2,2.70913]
[1717812123432,2.4511,3691.6,3691.2,2.70913]
[1717812123633,0.4171432,3691.5,3691.2,2.70913]
[1717812124120,1.00281523,3691.5,3691.2,2.70913]
[1717812124458,0.58567203,3691.4,3691.2,2.70913]
[1717812125122,0.4171432,3691.3,3691.2,2.70913]
[1717812125543,0.58567203,3691.5,3691.2,2.70913]
[1717812125757,0.41710153,3691.3,3691.2,2.70913]
[1717812125958,0.58567203,3691.5,3691.2,2.70913]
[1717812126143,0.41710153,3691.3,3691.2,2.70913]
[1717812126345,0.58567203,3691.3,3691.2,2.70913]
[1717812126553,0.41710153,3691.3,3691.2,2.70913]
[1717812126725,0.41710153,3691.3,3690.8,5.1413]
[1717812126922,1.62700127,3691.0,3690.8,5.8623]
[1717812127125,1.62700127,3690.9,3690.8,5.8623]
[1717812127327,1.62700127,3691.0,3690.8,5.8623]
[1717812127630,0.41710153,3690.9,3690.8,5.8623]
[1717812127828,0.41710153,3690.9,3690.8,2.7094]
[1717812128538,1.62700127,3691.1,3690.8,2.7094]
[1717812128768,0.41710153,3690.9,3690.8,2.7094]
[1717812129729,1.62700127,3691.1,3690.8,2.7094]
[1717812129927,0.41700433,3690.9,3690.8,2.7094]
[1717812130427,1.62700127,3691.1,3690.8,2.7094]
[1717812130662,0.41700433,3691.0,3690.8,2.7094]
[1717812136866,2.0440056,3691.0,3690.8,2.7094]
[1717812137169,4.4416056,3691.0,3690.8,2.7094]
[1717812137372,1.62700127,3690.9,3690.8,2.7094]
[1717812137732,2.0439917,3690.9,3690.8,2.7094]
[1717812137978,2.0439917,3690.9,3690.4,5.9219]
[1717812138350,2.0439917,3690.9,3690.4,5.2009]
[1717812138351,1.62700127,3690.9,3690.4,5.2009]
[1717812138658,0.41699043,3690.8,3690.4,5.2009]
[1717812138843,1.62700127,3690.9,3690.4,5.2009]
[1717812139047,0.41699043,3690.8,3690.4,2.7097]
[1717812139236,1.62700127,3690.9,3690.4,2.7097]
[1717812139433,0.41699043,3690.8,3690.4,2.7097]
[1717812139633,1.62700127,3690.9,3690.4,2.7097]
[1717812139837,0.41699043,3690.8,3690.4,2.7097]
[1717812140037,1.62700127,3690.9,3690.4,2.7097]
[1717812140239,0.41699043,3690.8,3690.4,2.7097]
[1717812140565,1.62700127,3690.9,3690.4,2.7097]
[1717812140971,0.41699043,3690.8,3690.4,2.7097]
[1717812141987,1.62700127,3690.7,3690.4,2.7097]
[1717812142551,0.41675435,3690.6,3690.4,2.7097]
[1717812143448,1.62700127,3690.8,3690.4,2.7097]
[1717812143660,0.41655295,3690.7,3690.4,2.7097]
[1717812143984,1.62700127,3690.7,3690.4,2.7097]
[1717812144224,1.62700127,3690.6,3690.4,2.7097]
[1717812144351,0.41655988,3690.6,3690.4,2.7097]
[1717812155298,2.04380001,3690.6,3690.4,2.7097]
[1717812165347,1.62724013,3690.5,3690.4,2.7097]
[1717812165555,2.04375141,3690.5,3690.4,2.7097]
[1717812168468,0.41651128,3690.5,3690.4,2.7097]
[1717812168648,1.00231772,3690.5,3690.4,2.7097]
[1717812168964,0.41651128,3690.5,3690.4,2.7097]
[1717812169163,0.58580644,3690.9,3690.4,2.7097]
[1717812169373,0.41646962,3690.5,3690.4,2.7097]
[1717812169565,0.58580644,3690.7,3690.4,2.7097]
[1717812169751,0.41646962,3690.5,3690.4,2.7097]
[1717812169951,0.58580644,3690.5,3690.4,2.7097]
[1717812170159,0.41645225,3690.5,3690.4,2.7097]
[1717812170660,1.00225869,3690.5,3690.4,2.7097]
[1717812170876,0.41645225,3690.5,3690.4,2.7097]
[1717812171367,1.00225869,3690.5,3690.4,2.7097]
[1717812172773,1.37455862,3690.5,3690.0,2.70999]
[1717812172945,1.62727351,3690.3,3690.0,2.70999]
[1717812173150,2.21307995,3690.3,3690.0,2.70999]
[1717812173350,0.41644528,3690.2,3690.0,2.70999]
[1717812173753,1.62727351,3690.3,3690.0,2.70999]
[1717812173952,0.41644528,3690.1,3690.0,2.70999]
[1717812174152,1.62727351,3690.3,3690.0,2.70999]
[1717812174456,0.41644528,3690.1,3690.0,2.70999]
[1717812175261,1.62727351,3690.3,3690.0,2.70999]
[1717812175880,0.41644528,3690.2,3690.0,2.70999]
[1717812176237,1.62727351,3690.3,3690.0,2.70999]
[1717812176481,0.41644528,3690.1,3690.0,2.70999]
[1717812177003,1.62727351,3690.3,3690.0,2.70999]
[1717812177209,0.41644528,3690.1,3690.0,2.70999]
[1717812177516,1.62727351,3690.3,3690.0,2.70999]
[1717812178197,0.41644528,3690.2,3690.0,2.70999]
[1717812178394,1.62727351,3690.3,3690.0,2.70999]
[1717812178599,0.41644528,3690.1,3690.0,2.70999]
[1717812178798,1.62727351,3690.3,3690.0,2.70999]
[1717812179014,0.41644528,3690.1,3690.0,2.70999]
[1717812179177,1.62727351,3690.3,3690.0,2.70999]
[1717812179379,0.41644528,3690.1,3690.0,2.70999]
[1717812179602,1.62727351,3690.3,3690.0,2.70999]
[1717812179803,0.41644528,3690.1,3690.0,2.70999]
[1717812180105,1.62727351,3690.3,3690.0,2.70999]
[1717812180272,0.41644528,3690.1,3690.0,2.70999]
[1717812180473,1.62727351,3690.2,3690.0,2.70999]
[1717812180672,0.41644528,3690.1,3690.0,2.70999]
[1717812182310,2.83884528,3690.1,3689.5,2.71032]
[1717812182524,1.62727351,3689.9,3689.5,2.71032]
[1717812182939,1.62727351,3689.6,3689.5,2.71032]
[1717812183380,0.41596243,3689.6,3689.5,2.71032]
[1717812183976,1.62727351,3689.8,3689.5,2.71032]
[1717812184189,0.41596243,3689.6,3689.5,2.71032]
[1717812184627,1.62727351,3689.8,3689.5,2.71032]
[1717812184810,0.41596243,3689.6,3689.5,2.71032]
[1717812185042,1.62727351,3689.8,3689.5,2.71032]
[1717812185255,0.41596243,3689.6,3689.5,2.71032]
[1717812185414,1.62727351,3689.8,3689.5,2.71032]
[1717812185609,0.41596243,3689.6,3689.5,2.71032]
[1717812185811,1.62727351,3689.8,3689.5,2.71032]
[1717812186012,0.41596243,3689.6,3689.5,2.71032]
[1717812186259,1.62727351,3689.8,3689.5,2.71032]
[1717812186849,0.41596243,3689.7,3689.5,2.71032]
[1717812187254,1.62727351,3689.8,3689.5,2.71032]
[1717812187452,0.41596243,3689.6,3689.5,2.71032]
[1717812187916,1.62727351,3689.8,3689.5,2.71032]
[1717812188124,1.81343001,3689.9,3689.5,2.71032]
[1717812188741,0.41582695,3689.8,3689.5,2.71032]
[1717812191333,0.41582695,3689.8,3688.8,7.43]
[1717812191334,0.41582695,3689.8,3689.7,5.10014]
[1717812191530,1.62727351,3690.4,3689.9,2.71004]
[1717812191737,2.21307995,3690.6,3690.0,0.721]
[1717812192060,2.09784151,3690.6,3690.0,0.721]
[1717812194354,0.58580644,3691.0,3690.4,0.721]
[1717812194355,1.62727351,3690.7,3690.4,0.721]
[1717812194719,1.62727351,3690.8,3690.2,2.3899]
[1717812194921,1.62727351,3690.8,3690.3,0.721]
[1717812195185,1.62727351,3690.9,3690.3,0.721]
[1717812195683,1.12294064,3691.2,3690.7,2.70949]
[1717812195684,1.62727351,3691.1,3690.7,2.70949]
[1717812195831,1.12294064,3691.2,3690.7,2.70949]
[1717812196153,1.62727351,3691.3,3690.7,2.70949]
[1717812197773,1.62727351,3691.3,3690.7,3.43049]
[1717812200068,1.62727351,3691.4,3690.7,3.43049]
[1717812201600,1.62727351,3691.5,3691.2,2.3899]
[1717812201757,1.62727351,3691.7,3691.3,2.70907]
[1717812202092,0.85555365,3691.8,3691.3,2.70907]
[1717812202419,0.18614364,3691.8,3691.3,2.70907]
[1717812205998,0.41648334,3691.7,3691.3,3.43007]
[1717812206203,0.18614364,3691.8,3691.3,3.43007]
[1717812206401,0.41648334,3691.6,3691.3,3.43007]
[1717812206603,0.18614364,3691.8,3691.3,3.43007]
[1717812206768,0.41648334,3691.5,3691.3,3.43007]
[1717812206972,0.18614364,3691.8,3691.3,3.43007]
[1717812207179,0.41648334,3691.4,3691.3,3.43007]
[1717812207379,0.18614364,3691.8,3691.3,3.43007]
[1717812207881,0.41648334,3691.7,3691.3,3.43007]
[1717812208083,0.18614364,3691.8,3691.3,3.43007]
[1717812208283,0.41648334,3691.7,3691.3,3.43007]
[1717812208484,0.18614364,3691.8,3691.3,4.012067]
[1717812208822,0.41648334,3691.7,3691.3,4.012067]
[1717812208985,0.18614364,3691.8,3691.3,4.012067]
[1717812209185,0.41648334,3691.6,3691.3,4.012067]
[1717812209487,0.18614364,3691.8,3691.3,4.012067]
[1717812209832,0.41650417,3691.7,3691.5,2.70891]
[1717812210125,0.18614364,3691.8,3691.5,2.70891]
[1717812210287,0.41650417,3691.7,3691.5,2.70891]
[1717812210479,0.18614364,3691.8,3691.5,2.70891]
[1717812210687,0.41650417,3691.7,3691.5,2.70891]
[1717812210920,0.18614364,3691.8,3691.5,2.70891]
[1717812211121,0.41650417,3691.7,3691.5,2.70891]
[1717812211433,0.18614364,3691.8,3691.5,3.35491067]
[1717812211601,0.41650417,3691.6,3691.5,3.35491067]
[1717812211785,0.18614364,3691.8,3691.5,3.35491067]
[1717812211986,0.41649724,3691.6,3691.5,3.35491067]
[1717812212186,0.18614364,3691.8,3691.5,3.35491067]
[1717812212481,0.41649724,3691.6,3691.5,3.35491067]
[1717812212686,0.18614364,3691.8,3691.5,3.35491067]
[1717812212906,0.41649724,3691.7,3691.5,3.35491067]
[1717812213110,0.18614364,3691.8,3691.5,3.35491067]
[1717812213308,0.41649724,3691.7,3691.5,3.35491067]
[1717812213508,0.18614364,3691.8,3691.5,3.35491067]
[1717812213725,0.41649377,3691.7,3691.5,3.35491067]
[1717812213931,0.18614364,3691.8,3691.5,3.35491067]
[1717812214094,0.41649377,3691.7,3691.5,3.35491067]
[1717812214425,0.18614364,3691.8,3691.5,3.35491067]
[1717812214657,0.41649377,3691.6,3691.5,3.35491067]
[1717812214820,0.18614364,3691.8,3691.5,3.35491067]
[1717812215216,0.41649377,3691.7,3691.5,3.35491067]
[1717812215421,0.18614364,3691.8,3691.5,3.35491067]
[1717812215620,0.18614364,3691.8,3691.5,2.70891]
[1717812215621,0.41649377,3691.6,3691.5,2.70891]
[1717812215825,0.18614364,3691.8,3691.5,2.70891]
[1717812216063,0.41649377,3691.6,3691.5,2.70891]
[1717812216242,0.18614364,3691.8,3691.5,2.70891]
[1717812216448,0.41649377,3691.6,3691.5,2.70891]
[1717812216662,0.18614364,3691.8,3691.5,2.70891]
[1717812216965,0.17480376,3691.6,3691.5,2.70891]
[1717812217527,0.59129753,3691.6,3691.5,2.70891]
[1717812221230,2.21857104,3691.6,3691.5,2.70891]
[1717812221435,2.21857104,3691.6,3691.1,2.7092]
[1717812221675,1.62727351,3691.5,3691.1,2.7092]
[1717812221862,2.21857104,3691.6,3691.1,2.7092]
[1717812222034,0.4169488,3691.4,3691.1,2.7092]
[1717812222228,1.62727351,3691.5,3691.1,2.7092]
[1717812222476,0.4169488,3691.3,3691.1,2.7092]
[1717812222768,0.4169488,3691.2,3691.1,2.7092]
[1717812222977,1.80207727,3691.6,3691.1,2.7092]
[1717812223175,0.4169488,3691.2,3691.1,2.7092]
[1717812223350,1.62727351,3691.2,3691.1,2.7092]
[1717812223672,2.04419104,3691.2,3691.1,2.7092]
[1717812223848,0.41691753,3691.2,3691.1,2.7092]
[1717812224250,1.62727351,3691.2,3691.1,2.7092]
[1717812224574,0.41691753,3691.2,3691.1,2.7092]
[1717812224775,2.89340644,3691.5,3691.1,2.7092]
[1717812224937,0.41691753,3691.2,3691.1,2.7092]
[1717812225245,2.89340644,3691.5,3691.1,2.7092]
[1717812225445,0.41691753,3691.2,3691.1,2.7092]
[1717812225650,0.58580644,3691.4,3691.1,2.7092]
[1717812225873,0.41691753,3691.2,3691.1,2.7092]
[1717812226374,0.58580644,3691.4,3691.1,2.7092]
[1717812226676,0.41691753,3691.2,3691.1,2.7092]
[1717812226881,0.58580644,3691.4,3691.1,2.7092]
[1717812227181,2.3076,3691.5,3691.1,2.7092]
[1717812227342,1.6270041,3691.2,3691.1,2.7092]
[1717812227736,2.04392163,3691.2,3691.1,2.7092]
[1717812227950,0.41691753,3691.2,3691.1,2.7092]
[1717812228275,0.58572639,3691.4,3691.1,2.7092]
[1717812228770,0.41691753,3691.3,3691.1,2.7092]
[1717812229078,1.62699873,3691.2,3691.1,2.7092]
[1717812229580,2.04391626,3691.2,3691.1,2.7092]
[1717812229738,0.41691753,3691.2,3691.1,2.7092]
[1717812229943,0.58572639,3691.4,3691.1,2.7092]
[1717812230279,0.9646467,3691.4,3691.1,2.7092]
[1717812230478,0.41691753,3691.3,3691.1,2.7092]
[1717812231680,0.41691753,3691.3,3690.7,2.70949]
[1717812231874,1.62706473,3690.9,3690.7,2.70949]
[1717812232354,0.41691753,3690.8,3690.7,2.70949]
[1717812233946,0.41475042,3690.8,3690.7,2.70949]
[1717812234959,1.62706473,3691.0,3690.7,2.70949]
[1717812235278,0.4168453,3690.8,3690.7,2.70949]
[1717812235482,1.62706473,3691.0,3690.7,2.70949]
[1717812235688,0.4168453,3690.8,3690.7,2.70949]
[1717812236180,1.62706473,3691.0,3690.7,2.70949]
[1717812236382,0.4168453,3690.8,3690.7,2.70949]
[1717812236580,1.6271109,3691.0,3690.7,2.70949]
[1717812236744,0.4168453,3690.8,3690.7,2.70949]
[1717812236945,1.6271109,3691.0,3690.7,2.70949]
[1717812237255,0.4168453,3690.8,3690.7,2.70949]
[1717812237466,1.6271109,3691.0,3690.7,2.70949]
[1717812237666,0.4168453,3690.8,3690.7,2.70949]
[1717812238180,1.6271109,3691.0,3690.7,2.70949]
[1717812238343,0.4168453,3690.8,3690.7,2.70949]
[1717812238743,1.6271109,3691.0,3690.7,2.70949]
[1717812238945,0.4167446,3690.9,3690.7,2.70949]
[1717812240490,1.6271109,3691.0,3690.7,2.70949]
[1717812240680,0.41675156,3690.8,3690.7,2.70949]
[1717812240880,1.6271109,3691.0,3690.7,2.70949]
[1717812241083,0.41675156,3690.8,3690.7,2.70949]
[1717812241280,1.6271109,3691.0,3690.7,2.70949]
[1717812241489,0.41675156,3690.8,3690.7,2.70949]
[1717812242007,1.6271109,3691.0,3690.7,2.70949]
[1717812242299,0.41675156,3690.8,3690.7,2.70949]
[1717812242494,1.6271109,3691.0,3690.7,2.70949]
[1717812242693,0.41675156,3690.8,3690.7,2.70949]
[1717812242850,1.6271109,3691.0,3690.7,2.70949]
[1717812243397,0.41675156,3690.9,3690.7,2.70949]
[1717812246888,2.04386246,3690.9,3690.7,2.70949]
[1717812247198,0.41675156,3690.9,3690.7,2.70949]
[1717812247494,2.04386246,3690.9,3690.7,2.70949]
[1717812249379,1.6271109,3690.8,3690.7,2.70949]
[1717812249770,2.04386246,3690.8,3690.7,2.70949]
[1717812252294,0.41675156,3690.8,3690.7,2.70949]
[1717812252875,0.58575992,3691.0,3690.7,2.70949]
[1717812253075,0.41676543,3690.8,3690.7,2.70949]
[1717812253268,0.58575992,3691.0,3690.7,2.70949]
[1717812253474,0.41676543,3690.8,3690.7,3.43049]
[1717812253673,0.58575992,3690.8,3690.7,3.43049]
[1717812253896,0.41676543,3690.8,3690.7,3.43049]
[1717812254096,0.58575992,3690.9,3690.7,3.43049]
[1717812254396,0.58575992,3690.8,3690.7,3.43049]
[1717812254604,0.58575992,3691.0,3690.7,2.70949]
[1717812254895,0.41676543,3690.8,3690.7,2.70949]
[1717812255095,0.58575992,3690.9,3690.7,2.70949]
[1717812255290,2.355,3691.1,3690.7,2.70949]
[1717812255291,1.00252535,3690.8,3690.7,2.70949]